Cogmind - Beta 10.1 *** ADVENTURER MODE // 2020.09.22 @ 00:05:55 // Winter2019/RPGLIKE Player: Skitgris Result: Destroyed by S-27 Virus with Autogun Performance ------------- Evolutions (3) 1500 Regions Visited (4) 800 Robots Destroyed (21) 105 Value Destroyed (517) 517 Prototype IDs (3) 60 Alien Tech Used (0) 0 Bonus (0) 0 TOTAL SCORE: 2982 Bonus ------- None Cogmind --------- Core Integrity 0/850 Matter 107/300 Energy 23/300 System Corruption 0% Temperature Cool (0) Movement Flying (34) Location -7/Factory Parts ------- > --- POWER (1) -------- Enhanced Nuclear Core > --- PROPULSION (3) --- Xenon Bombardment Thruster Xenon Bombardment Thruster Xenon Bombardment Thruster > --- UTILITY (6) ------ Advanced Weight Redist. System Advanced Signal Interpreter Advanced Terrain Scanner Seismic Analyzer Utility Shielding Improved Shield Generator > --- WEAPON (2) ------- EMP Blaster Mining Claw > --- INVENTORY (5) ---- Improved EM Shotgun Beam Rifle Electrolaser Improved Light Cannon Improved Datajack Peak State ------------ > --- POWER ------------ Enhanced Nuclear Core > --- PROPULSION ------- Xenon Bombardment Thruster Xenon Bombardment Thruster Xenon Bombardment Thruster > --- UTILITY ---------- Advanced Weight Redist. System Advanced Signal Interpreter Advanced Terrain Scanner Seismic Analyzer Utility Shielding Improved Shield Generator > --- WEAPON ----------- Beam Rifle Electrolaser > --- INVENTORY -------- Improved EM Shotgun Improved Light Cannon EMP Blaster Improved Datajack Mining Claw [Rating: 38] Favorites ----------- Power Ion Engine Engine Ion Engine Power Core Enhanced Nuclear Core Propulsion Hover Unit Leg Aluminum Leg Hover Unit Hover Unit Flight Unit Xenon Bombardment Thruster Utility Signal Interpreter Device Terrain Scanner Processor Signal Interpreter Protection Utility Shielding Weapon Light Assault Rifle Energy Gun Medium Laser Ballistic Gun Light Assault Rifle Launcher EMP Blaster Slashing Weapon Mining Claw Special Melee Weapon Datajack Build | -11 -10 -9 -8 -7 ------- Run | Scr Mat Mat Mat Fac Slots Evolved 8 | 3 1 2 2 . Power . | . . . . . Propulsion 2 | 1 . . 1 . Utility 5 | 2 . 2 1 . Weapon 1 | . 1 . . . Parts Attached 39 | 4 7 5 17 6 Power 2 | 1 . . 1 . Engine 1 | 1 . . . . Core 1 | . . . 1 . Reactor . | . . . . . Propulsion 12 | 2 2 2 6 . Treads . | . . . . . Leg 2 | 2 . . . . Wheel . | . . . . . Hover 6 | . 2 2 2 . Flight 4 | . . . 4 . Utility 14 | . 4 2 6 2 Device 8 | . 2 1 4 1 Storage . | . . . . . Processor 3 | . 1 . 1 1 Hackware . | . . . . . Protection 3 | . 1 1 1 . Artifact . | . . . . . Weapon 11 | 1 1 1 4 4 Energy Gun 5 | . 1 . 3 1 Energy Cannon . | . . . . . Ballistic Gun 1 | 1 . . . . Ballistic Cannon . | . . . . . Launcher 3 | . . . 1 2 Special Weapon . | . . . . . Impact Weapon . | . . . . . Slashing Weapon 1 | . . . . 1 Piercing Weapon . | . . . . . Special Melee Weapon 1 | . . 1 . . Unidentified Prototypes 3 | . . . 3 . Parts Lost 1 | . . 1 . . Power . | . . . . . Propulsion . | . . . . . Utility 1 | . . 1 . . Weapon . | . . . . . Highest Loss Streak 1 | . . 1 . . Average Slot Usage (%) 93 | . 90 94 90 100 Engine 8 | . 13 10 7 . Core 1 | . . . . 8 Leg 2 | . 11 . . . Hover 14 | . 15 21 17 . Flight 4 | . . . . 25 Device 15 | . 12 10 16 25 Processor 12 | . 8 10 14 16 Protection 13 | . 10 18 14 8 Energy Gun 8 | . 3 10 6 12 Ballistic Gun 5 | . 13 8 . . Launcher 2 | . . . 6 . Special Melee Weapon 1 | . . 2 2 . Naked Turns . | . . . . . Heaviest Build 20 | 6 12 13 20 20 Greatest Support 30 | 20 20 14 30 30 Greatest Overweight (x) 1 | 1 1 1 1 . Average Overweight (x) . | . . . . . Largest Inventory Capacity 5 | 3 3 4 5 5 Average Capacity 3 | 1 3 3 4 5 Most Carried 5 | 3 3 4 5 5 Average Carried 3 | 1 2 3 3 4 Final Capacity 5 | 3 3 4 5 5 Final Carried 5 | 3 2 3 5 5 Class Distribution -------------------- 67% | Mutant 32% | Scavenger-Mutant Dominant Class ---------------- Mutant | -10/Materials Mutant | -9/Materials Scavenger-Mutant | -8/Materials Mutant | -7/Factory Resources | -11 -10 -9 -8 -7 ----------- Run | Scr Mat Mat Mat Fac Matter Collected 472 | 240 82 66 84 . Remotely . | . . . . . Salvage Created 570 | . 53 261 219 37 Parts 46 | . 6 17 23 . Haulers Intercepted . | . . . . . Recyclers Shooed . | . . . . . Parts Field Recycled . | . . . . . Retrieved Matter . | . . . . . Parts Self-Destructed . | . . . . . Prevented . | . . . . . Kills | -11 -10 -9 -8 -7 ------- Run | Scr Mat Mat Mat Fac Combat Hostiles Destroyed 17 | . . 10 6 1 Melee 1 | . . . . 1 Guns 14 | . . 10 4 . AOE 2 | . . . 2 . Classes Destroyed 6 | . 2 4 . . Tunneler 2 | . 1 . 1 . Watcher 2 | . 1 . 1 . Swarmer 8 | . . 4 3 1 Grunt 5 | . . 4 1 . Duelist 1 | . . 1 . . Sentry 3 | . . 1 2 . Best Kill Streak 4 | . 1 4 3 1 Combat Bots Only 4 | . . 4 3 1 Max Kills in Single Turn 1 | . 1 1 1 1 Gunslinging . | . . . . . Exploded 1 | . . . 1 . Melee 1 | . . . . 1 Uniques/NPCs Destroyed . | . . . . . Combat | -11 -10 -9 -8 -7 -------- Run | Scr Mat Mat Mat Fac Damage Taken 1212 | . 16 564 205 427 Core 855 | . 6 381 139 329 Absorbed by Shields 129 | . . . 7 122 Redirected to Core 715 | . 6 326 139 244 Core Remaining (%) 71 | 100 99 48 38 . Volleys Fired 83 | . 12 43 26 2 Largest 2 | . 2 2 2 1 Hottest 119 | . 70 70 119 56 Shots Fired 124 | . 14 79 29 2 Gun 116 | . 14 79 21 2 Cannon . | . . . . . Launcher 8 | . . . 8 . Special . | . . . . . Kinetic 48 | . 12 36 . . Thermal 68 | . 2 43 21 2 Explosive . | . . . . . Electromagnetic 8 | . . . 8 . Robot Hit Streak 50 | . 7 50 9 . Robot Miss Streak 2 | . 1 2 1 2 Penetration Max . | . . . . . Secondary Targets . | . . . . . Shots Hit Robots 102 | . 10 67 23 2 Core Hits 36 | . 4 19 12 1 Critical Hits . | . . . . . Critical Kills . | . . . . . Critical Parts Destroyed . | . . . . . Melee Attacks 13 | . . 6 . 7 Impact . | . . . . . Slashing 7 | . . . . 7 Piercing . | . . . . . Sneak Attacks 5 | . . 5 . . Combat Hostiles . | . . . . . Follow-up Attacks . | . . . . . Damage Inflicted 1147 | . 68 616 404 59 Guns 981 | . 68 616 283 14 Cannons . | . . . . . Explosions 121 | . . . 121 . Melee 45 | . . . . 45 Ramming . | . . . . . Kinetic 248 | . 68 180 . . Thermal 733 | . . 436 283 14 Explosive . | . . . . . Electromagnetic 121 | . . . 121 . Impact . | . . . . . Slashing 45 | . . . . 45 Piercing . | . . . . . Highest Corruption . | . . . . . Average Corruption . | . . . . . Corruption Purged . | . . . . . Overload Shots . | . . . . . Overflow Damage . | . . . . . Projectiles . | . . . . . Explosions . | . . . . . Melee . | . . . . . Knockbacks . | . . . . . Impact . | . . . . . Kinetic . | . . . . . Secondary . | . . . . . Self-Inflicted Damage . | . . . . . Shots . | . . . . . Rammed . | . . . . . Targets Rammed . | . . . . . Kicked . | . . . . . Crushed . | . . . . . Highest Temperature 320 | . 40 320 162 9 Average Temperature 71 | . 12 88 50 6 Received Heat Transfer 403 | . . 195 114 94 Effects 1 | . . 1 . . Interference 1 | . . 1 . . Siege Activations . | . . . . . Robots Corrupted . | . . . . . Combat Hostiles . | . . . . . Parts Fried 1 | . . . 1 . Impact Corruptions . | . . . . . Robots Melted . | . . . . . Combat Hostiles . | . . . . . Parts Melted 5 | . . 3 2 . Heat Transferred 1961 | . . 1295 629 37 Parts Sabotaged . | . . . . . Parts Stolen . | . . . . . Parts Stripped . | . . . . . Power Chain Reactions 1 | . . . 1 . Missiles Intercepted . | . . . . . Alert | -11 -10 -9 -8 -7 ------- Run | Scr Mat Mat Mat Fac Peak Influence 305 | . 76 305 237 87 Initial 34 | . . 27 34 22 Average 112 | . 27 209 134 47 Maximum Alert Level 1 | . . 1 1 . Low Security (%) 81 | 100 100 48 85 100 Level 1 18 | . . 51 14 . Level 2 . | . . . . . Level 3 . | . . . . . Level 4 . | . . . . . Level 5 . | . . . . . High Security . | . . . . . Max Security . | . . . . . Squads Dispatched 4 | . . 2 1 1 Investigation 2 | . . 1 . 1 Extermination . | . . . . . Reinforcement 2 | . . 1 1 . Assault . | . . . . . Garrison . | . . . . . Intercept . | . . . . . Construction Impeded . | . . . . . Haulers Reinforced . | . . . . . Stealth | -11 -10 -9 -8 -7 --------- Run | Scr Mat Mat Mat Fac Distress Signals 2 | . . . 2 . Communications Jammed . | . . . . . Distress Signals . | . . . . . Times Spotted 38 | . 6 12 12 8 Peak Tracking Total 8 | . 2 4 6 8 Tactical Retreats 1 | . . 1 . . Traps | -11 -10 -9 -8 -7 ------- Run | Scr Mat Mat Mat Fac Traps Triggered 1 | . 1 . . . Indirectly . | . . . . . Trap Hack Attempts . | . . . . . Triggered . | . . . . . Disarmed . | . . . . . Reprogrammed . | . . . . . Reused . | . . . . . Traps Extracted . | . . . . . Installed . | . . . . . Triggered . | . . . . . Machines | -11 -10 -9 -8 -7 ---------- Run | Scr Mat Mat Mat Fac Machines Disabled . | . . . . . Max in Single Turn . | . . . . . Machines Sabotaged . | . . . . . Garrisons Compromised . | . . . . . Overloaded Fab Kills . | . . . . . Fab Network Shutdowns . | . . . . . Hacking | -11 -10 -9 -8 -7 --------- Run | Scr Mat Mat Mat Fac Machines Accessed 7 | . 1 2 3 1 Terminals 7 | . 1 2 3 1 Fabricators . | . . . . . Repair Stations . | . . . . . Recycling Units . | . . . . . Scanalyzers . | . . . . . Garrison Access . | . . . . . Total Hacks 20 | . 2 5 11 2 Successful 16 | . 2 5 9 . Failed 4 | . . . 2 2 Catastrophic 1 | . . . . 1 Database Lockouts . | . . . . . Manual 18 | . 2 5 9 2 Terminals 20 | . 2 5 11 2 Fabricators . | . . . . . Repair Stations . | . . . . . Recycling Units . | . . . . . Scanalyzers . | . . . . . Garrison Access . | . . . . . Terminal Hacks 4 | . . 1 3 . Record 1 | . . . 1 . Recall Reinforcements 1 | . . . 1 . Zone Layout 2 | . . 1 1 . Fabricator Hacks . | . . . . . Repair Station Hacks . | . . . . . Recycling Unit Hacks . | . . . . . Scanalyzer . | . . . . . Garrison Access Hacks . | . . . . . Unauthorized Hacks 12 | . 2 4 6 . Terminals 12 | . 2 4 6 . Track 6 | . 1 2 3 . Botnet 6 | . 1 2 3 . Fabricators . | . . . . . Repair Stations . | . . . . . Recycling Units . | . . . . . Scanalyzers . | . . . . . Garrison Access . | . . . . . Data Cores Recovered . | . . . . . Used . | . . . . . Hacking Detections 3 | . 1 1 . 1 Full Trace Events 2 | . . 1 . 1 Feedback Events . | . . . . . Feedback Blocked . | . . . . . Robot Schematics Acquired . | . . . . . Robots Built . | . . . . . Matter . | . . . . . Time . | . . . . . Total Robot Build Rating . | . . . . . Part Schematics Acquired . | . . . . . Parts Built . | . . . . . Matter . | . . . . . Time . | . . . . . Total Part Build Rating . | . . . . . Parts Repaired . | . . . . . Time . | . . . . . Parts Recycled . | . . . . . Recycled Matter . | . . . . . Retrieved Matter . | . . . . . Retrieved Components . | . . . . . Parts Scanalyzed . | . . . . . Part Schematics Acquired . | . . . . . Parts Damaged . | . . . . . Bothacking | -11 -10 -9 -8 -7 ------------ Run | Scr Mat Mat Mat Fac Used RIF Installer . | . . . . . Robots Hacked 3 | . . 3 . . Non-combat 2 | . . 2 . . Combat 1 | . . 1 . . Robot Hacks Applied 3 | . . 3 . . parse_system 2 | . . 2 . . no_distress 1 | . . 1 . . Relay Couplers Released . | . . . . . Robots Rewired . | . . . . . Allies Hacked . | . . . . . Hacks Repelled . | . . . . . Allies | -11 -10 -9 -8 -7 -------- Run | Scr Mat Mat Mat Fac Total Allies . | . . . . . Largest Group . | . . . . . Highest-Rated Group . | . . . . . Highest-Rated Ally . | . . . . . Total Orders . | . . . . . Ally Attacks . | . . . . . Total Damage . | . . . . . Kills . | . . . . . Allies Corrupted . | . . . . . Allies Melted . | . . . . . Intel | -11 -10 -9 -8 -7 ------- Run | Scr Mat Mat Mat Fac Robot Analysis Total . | . . . . . Derelict Logs Recovered . | . . . . . Drone Launches . | . . . . . Drone Recoveries . | . . . . . Exploration | -11 -10 -9 -8 -7 ------------- Run | Scr Mat Mat Mat Fac Turns Passed 1480 | 68 303 406 456 247 Spaces Moved 1385 | 47 351 428 307 252 Core 8 | 8 . . . . Treads . | . . . . . Legs 118 | 39 79 . . . Wheels . | . . . . . Hover 983 | . 272 428 283 . Flight 276 | . . . 24 252 Fastest Speed 34 | 50 56 56 34 34 Average Speed 61 | 112 71 58 68 34 Slowest Speed 130 | 120 130 120 120 34 Overloaded Moves . | . . . . . Propulsion Burnouts . | . . . . . Robots Hopped . | . . . . . Cave-ins Triggered . | . . . . . Exploration Rate (%) 23 | 3 46 31 31 8 Regions Visited 4 Branch Regions . Pre-discovered Areas . | . . . . . Known Exits Taken 3 | . 1 1 1 . Unknown Exits Taken 1 | 1 . . . . Scrap Searched . | . . . . . Spaces Dug . | . . . . . Terrain Destroyed 2 | . . . 2 . Melee . | . . . . . Projectile . | . . . . . AOE 2 | . . . 2 . Terrain Rammed . | . . . . . Walls Destroyed . | . . . . . Machines Disabled . | . . . . . Actions | -11 -10 -9 -8 -7 --------- Run | Scr Mat Mat Mat Fac Total 1874 | 60 393 503 521 397 Wait 320 | 7 14 16 157 126 Move 1381 | 46 350 427 306 252 Hop . | . . . . . Pick Up 17 | 3 4 4 5 1 Fast Attach 21 | 4 5 2 9 1 Attach 7 | . 2 2 3 . Detach 1 | . . . 1 . Swap 11 | . . 1 5 5 Drop 20 | . 6 2 9 3 Fire 83 | . 12 43 26 2 Melee 13 | . . 6 . 7 Ram . | . . . . . Kick . | . . . . . Crush . | . . . . . Escape Stasis . | . . . . . Rewire . | . . . . . Trap . | . . . . . Miscellaneous . | . . . . . Route ------- -11/Scrapyard -10/Materials -9/Materials -8/Materials -7/Factory History --------- Turn | Location | Event 11 | -11/Scrapyard | Discovered new exit (range 16) 16 | -11/Scrapyard | Upgraded with Propulsion slot (x1) 16 | -11/Scrapyard | Upgraded with Utility slot (x2) 69 | -11/Scrapyard | Entered Materials 263 | -10/Materials | Discovered new exit (range 10) 283 | -10/Materials | Upgraded with Weapon slot (x1) 304 | -10/Materials | Build established: Mutant 372 | -10/Materials | Identified exit to Materials 372 | -10/Materials | Entered another Materials area 374 | -9/Materials | Reached level 2 374 | -9/Materials | Reached level 3 427 | -9/Materials | Upgraded with Utility slot (x1) 567 | -9/Materials | Reached level 4 571 | -9/Materials | Upgraded with Utility slot (x1) 719 | -9/Materials | Discovered new exit (range 12) 764 | -9/Materials | Core integrity fell below 50% 777 | -9/Materials | Identified exit to Materials 778 | -9/Materials | Entered another Materials area 779 | -8/Materials | Core integrity fell below 50% 780 | -8/Materials | Reached level 5 780 | -8/Materials | Reached level 6 780 | -8/Materials | Upgraded with Propulsion slot (x1) 780 | -8/Materials | Upgraded with Utility slot (x1) 1115 | -8/Materials | Reached level 7 1138 | -8/Materials | Build established: Scavenger-Mutant 1228 | -8/Materials | Discovered new exit (range 16) 1233 | -8/Materials | Identified exit to Factory 1234 | -8/Materials | Entered Factory 1235 | -7/Factory | Core integrity fell below 50% 1236 | -7/Factory | Reached level 8 1236 | -7/Factory | Reached level 9 1459 | -7/Factory | Core integrity fell below 20% 1481 | -7/Factory | Destroyed by S-27 Virus with Autogun Last Messages --------------- 01221_ Slug penetrates Nuclear Reactor. 01222_ Acquired Xenon Bombardment Thruster. 01228_ EXIT=FOUND 01233_ EXIT=IDENTIFIED: FACTORY LOCATION=FACTORY GOAL=ESCAPE 01236_ Reached level 8. 01236_ Reached level 9. 01236_ Dropped Heat Sink. 01237_ Acquired Mining Claw. 01308_ Connecting with Terminal... 01308_ ALERT: Suspicious activity at Terminal F014. Dispatching Investigation squad. 01328_ Discarded Signal Interpreter. 01329_ Acquired Adv. Signal Interpreter. 01383_ Dropped Imp. Terrain Scanner. 01436_ U-05 Engineer lays Concrete. 01454_ Upgraded: Energy Generation (+10) 01457_ S-27 Virus destroyed. [Achievement: Just Browsing] Map ----- +----------------------------------------------------+ | ???????????#?#?????#?????#???????????????????????? | | ???????????????????#?????????????????????????????? | | ????????????????#??????#??#????#?#???????????????? | | ???????????????????#???#?#?#???#?????????????????? | | ????????????#??#???#????????#?#??????????????????? | | ?????????????#???###?????#?#??#???#???????#??????? | | ?????????#???????#?##???##??#?#??????? ??????????? | | ??????????????????##?#?##?#??#?##????#???????????? | | ?????????????#??#?#?#?####?#????##? ??????#??????? | | ????????????####?#???#???####??###? """??????????? | | ????????????###????#??##???#?#?### "???????#????? | | ???????#?#???????##??????##?#?##??? ? ? ?????????? | | ???????????#####?#???###?#???#??#? ???? ? ???????? | | ????????####??#????###############? """ ? ???????? | | ??????#???#####?????# #??""" ????????? | | ??????##??###??#???## # ??"? ?##?????? | | ????????#?#??##?##?## * # ? ?? ? #?#????? | | ????#???#??#???##??## # ??"? ??##?##??? | | ????????????##?#???## # ""?? #????? ? | | ??????##??#?#?#??#### s # ?"???? ??#????? | | ??????##??#?#######?# g"" "" #? ## ? ? | | ??????###?##?######## g"" "" #? """ ? ## ??? ? | | ?????????##????###### """Y""" # """ ? +???""?? | | ???????###?#?#??#?#?# """ """ # ?"?"? ## ""?? | | ???????####????###### """ """ # ?? ? ?#? "??? | | ????##??#?##?###??#?# s@s g #? ? ## ?? ?? | | ?????####?#??#?################+######+##### ?? | | ??###?#?###?#??######## ? | | ???#???#?##?#########?# ?? | | ##?#??#?#?####???####?# ??? | | ##??#???#?#?##??#?##### ? ? | | ?#?##########?##?####?# ? | | ?#####??#?##??#?####### ####################?? | | ####?#?##?###?#####?### ###############? ? ## | | #################?##?## # #??? ## | | # !! #####?# # """"""""" #?? ??# | | # """ !! #????## # # ? ? ?# | | # """ ! ! ###??## + """"""""" ##+????# | | " + """ #?#?### # #???#??? | | " # #??#?## # ## ???#? | | " # """ """ #?#?### ################???### | | # """ """ ####### ? ?? ? | | " # """ """ ##??### ? ????? | | " # ##?#### ? ?+ | | " # [ #???#?# ?? ??? | | # ####### ??? ??# | | # #??#?## ?? ? ?? | | ##########+############ """ """"""? ? ? | | """ """"?"" ? ?? | | """ """???"??????? | +----------------------------------------------------+ Best States ------------- Heat Dissipation 53 Energy Generation 32 Energy Capacity 300 Matter Stores 300 Matter Capacity 300 Sight Range 16 Robot Scan Range 4 Terrain Scan Range 20 Terrain Scan Density 160 Additional Mass Support 9 Armor Coverage 150 Resistance: KI 20 Resistance: TH 20 Resistance: EX 20 Resistance: EM 20 Resistance: I 20 Resistance: S 20 Resistance: P 20 Utility Shielding 33 Evasion (%) 63 Offensive Hacking 10 Item Schematics ----------------- None Robot Schematics ------------------ None Fabricated ------------ Nothing Alien Tech Used ----------------- None Achievements -------------- Just Browsing Omniscient Cartographer Challenges ------------ None RPGLIKE | -11 -10 -9 -8 -7 --------- Run | Scr Mat Mat Mat Fac Levels Raised 8 | . . 3 3 2 XP Earned 16536 | 4000 35 4784 4296 3421 XP Spent 13710 | 3300 550 4565 3945 1350 Upgrades 28 | 6 2 12 6 2 Propulsion Slot 2 | 1 . . 1 . Utility Slot 5 | 2 . 2 1 . Weapon Slot 1 | . 1 . . . Core Integrity 5 | . . 3 2 . Heat Dissipation 3 | . . 3 . . Energy Generation 3 | . . 1 . 2 Inventory Capacity 5 | 3 . 1 1 . Sensor Range 2 | . 1 . 1 . Terrain Scan Density 1 | . . 1 . . Ranged Accuracy 1 | . . 1 . . Protomatter Created 227 | . . 128 99 . Protomatter Decayed 227 | . . 128 99 . Game ------ Seed BurstDataNeutralizer Manual? 0 Play Time 00:37:12 Cumulative 18.7 hours Start 2020.09.21 @ 23:29:26 End 2020.09.22 @ 00:05:55 Sessions 1 Manual Loads 0 Difficulty Adventurer Special Mode Winter2019/RPGLIKE Game No. 30 Rogue 17 Adventurer 13 Explorer 0 Win Type - Total 0 Types 0/0/0/0/0/0/0/0/0 Lore% 9 Gallery% 25 Achievement% 20 Wizard Run 0 Options --------- ASCII 0 Keyboard 0 Movement Mouse Keybinds 0 Fullscreen 2 Font 36/X11 Map View 76x50 Tactical HUD 1 Map Filters NONE Filters NONE Steam 1 RUN: 38fc0f6b-d471-4f8f-8055-0a93dc27e3e0